fUSD/lending_fUSD_20240921
["ID","MTS","AMOUNT","RATE_DAILY","PERIOD"]
[338697604,1726883433145,-161.21984786,0.00014384,2]
[338697605,1726883433155,-607.36,0.00014384,2]
[338697606,1726883433164,-22851.2847,0.00014389,2]
[338697607,1726883433174,-5022.9705,0.00014389,2]
[338697608,1726883433183,-705.16,0.00014389,2]
[338697609,1726883433192,-150.0,0.00014398,2]
[338697610,1726883433201,-150.0,0.0001441,2]
[338697611,1726883433214,-150.0,0.0001442,2]
[338697612,1726883433223,-150.0,0.00014422,2]
[338697613,1726883433232,-150.0,0.00014454,2]
[338697614,1726883433242,-150.0,0.00014459,2]
[338697615,1726883433251,-1006.08,0.00014465,2]
[338697616,1726883433260,-512.9073,0.00014469,2]
[338697617,1726883433269,-1562.31,0.00014481,7]
[338697618,1726883433280,-1562.31,0.00014481,7]
[338697619,1726883433289,-150.0,0.00014489,2]
[338697620,1726883433299,-655.0721,0.00014489,2]
[338697621,1726883433308,-215.6493,0.00014489,2]
[338697622,1726883433318,-150.0,0.00014505,2]
[338697623,1726883433327,-161.21984786,0.00014521,2]
[338697624,1726883433336,-150.0,0.00014521,2]
[338697625,1726883433346,-150.0,0.00014521,2]
[338697626,1726883433355,-2000.0,0.00014551,2]
[338697627,1726883433364,-194.73729859,0.00014555,2]
[338697628,1726883433374,-800.79712942,0.0001457,2]
[338697629,1726883433383,-150.0,0.00014575,2]
[338697630,1726883433392,-150.0,0.00014583,2]
[338697631,1726883433401,-150.0,0.00014587,2]
[338697632,1726883433411,-500.0,0.00014588,2]
[338697633,1726883433420,-500.0,0.00014588,2]
[338697634,1726883433429,-320.86420126,0.00014588,2]
[338697635,1726883433438,-172.04795699,0.00014588,2]
[338697636,1726883433448,-302.28,0.00014589,2]
[338697637,1726883433457,-150.0,0.00014592,2]
[338697638,1726883433467,-663.09586192,0.00014594,2]
[338697639,1726883433477,-282.47058386,0.00014594,2]
[338697640,1726883433487,-315.73635493,0.00014594,2]
[338697641,1726883433496,-4732.74782477,0.00014599,2]
[338697642,1726883433506,-150.0,0.00014599,2]
[338697643,1726883433515,-159.128187,0.000146,4]
[338697644,1726883433525,-150.0,0.00014601,2]
[338697645,1726883433535,-1000.0,0.0001461,2]
[338697646,1726883433544,-161.21984786,0.0001463,2]
[338697647,1726883433554,-150.0,0.00014642,2]
[338697648,1726883433563,-150.0,0.00014644,2]
[338697649,1726883433573,-150.0,0.00014658,2]
[338697650,1726883433582,-3152.2467044,0.00014663,2]
[338697651,1726883433591,-263.50854084,0.00014663,2]
[338697652,1726883433600,-419.4022673,0.00014663,2]
[338697653,1726883433610,-204.0,0.00014669,2]
[338697654,1726883433619,-15174.19,0.00014669,2]
[338697655,1726883433629,-700.0,0.0001467,2]
[338697656,1726883433639,-500.34862955,0.0001467,2]
[338697657,1726883433649,-501.78161585,0.00014673,2]
[338697658,1726883433658,-503.88090778,0.00014673,2]
[338697659,1726883433668,-311.4902683,0.00014673,2]
[338697660,1726883433677,-641.62696893,0.00014673,2]
[338697661,1726883433687,-500.0,0.00014673,2]
[338697662,1726883433696,-602.52694468,0.00014673,2]
[338697663,1726883433706,-167.76666165,0.00014673,2]
[338697664,1726883433715,-158.8671686,0.00014673,2]
[338697665,1726883433725,-173.23989157,0.00014674,2]
[338697666,1726883433734,-17656.39913935,0.00014679,2]
[338697667,1726883433744,-84152.9569258,0.00014679,2]
[338697668,1726883433754,-154.17,0.00014679,2]
[338697669,1726883433764,-16881.81987135,0.0001468,2]
[338697670,1726883433773,-59234.29214924,0.00014689,2]
[338697671,1726883433787,-2670.841426,0.00014689,2]
[338697672,1726883433798,-69719.29509487,0.00014689,2]
[338697673,1726883433807,-634.56357804,0.00014694,2]
[338697674,1726883433816,-175.23138634,0.00014694,2]
[338697675,1726883434032,-177.83788776,0.00014694,2]
[338697676,1726883434042,-224.28323613,0.00014694,2]
[338697677,1726883434052,-1000.0,0.000147,2]
[338697678,1726883434061,-1000.0,0.000147,2]
[338697679,1726883434071,-1000.0,0.000147,2]
[338697680,1726883434080,-1000.0,0.000147,2]
[338697681,1726883434089,-1000.0,0.000147,2]
[338697682,1726883434099,-1000.0,0.000147,2]
[338697683,1726883434108,-1000.0,0.000147,2]
[338697684,1726883434117,-1000.0,0.000147,2]
[338697685,1726883434126,-1000.0,0.000147,2]
[338697686,1726883434135,-1000.0,0.000147,2]
[338697687,1726883434145,-150.0,0.00014706,2]
[338697688,1726883434154,-224.28323612,0.00014727,2]
[338697689,1726883434163,-634.56357803,0.00014727,2]
[338697690,1726883434172,-177.83788774,0.00014727,2]
[338697691,1726883434182,-21038.2392315,0.0001474,2]
[338697692,1726883434191,-245.15258834,0.00014743,2]
[338697693,1726883434205,-42076.4784629,0.00014754,2]
[338697694,1726883434214,-9348.65595474,0.00014754,2]
[338697695,1726883434223,-21038.2392315,0.00014754,2]
[338697696,1726883434233,-18697.3119095,0.00014754,2]
[338697697,1726883434243,-1562.31,0.00014754,7]
[338697698,1726883434252,-1562.31,0.00014754,7]
[338697699,1726883434262,-154.17,0.00014754,2]
[338697700,1726883434272,-158.78,0.00014758,2]
[338697701,1726883434284,-224.28323612,0.00014759,2]
[338697702,1726883434295,-634.56357803,0.0001476,2]
[338697703,1726883434304,-177.83788774,0.0001476,2]
[338697704,1726883434314,-21038.2392315,0.0001476,2]
[338697705,1726883434323,-9348.65595474,0.0001476,2]
[338697706,1726883434333,-21038.2392315,0.00014763,2]
[338697707,1726883434342,-37394.623819,0.00014763,2]
[338697708,1726883434352,-42076.4784629,0.00014763,2]
[338697709,1726883434361,-37394.623819,0.00014763,2]
[338697710,1726883434370,-42076.4784629,0.00014764,2]
[338697711,1726883434381,-28045.9678642,0.00014764,2]
[338697712,1726883434391,-8043.78622929,0.00014764,2]
[338697716,1726883437741,-2342.33206655,0.00014764,2]
[338697717,1726883437754,-3709.71134817,0.00014764,2]
[338697718,1726883437766,-6942.40958749,0.00014764,2]
[338697719,1726883437777,-37394.623819,0.00014764,2]
[338697720,1726883437787,-154.17,0.00014764,2]
[338697721,1726883437796,-18495.00034209,0.00014764,2]
[338697722,1726883437926,-23581.47812081,0.00014764,2]
[338697723,1726883437936,-28045.9678642,0.00014764,2]
[338697724,1726883437946,-19115.8979815,0.00014764,2]
[338697725,1726883437958,-157.78067585,0.00014764,2]
[338697726,1726883437967,-251.41224921,0.00014767,2]
[338697727,1726883437977,-154.15323164,0.00014767,2]
[338697728,1726883437987,-242.58591062,0.00014767,2]
[338697729,1726883437999,-161.21984786,0.00014767,2]
[338697730,1726883438009,-500.0,0.00014769,2]
[338697732,1726883438018,-500.0,0.00014769,2]
[338697734,1726883438028,-449.56629915,0.00014769,2]
[338697736,1726883438038,-151.66537453,0.00014769,2]
[338697738,1726883438048,-151.66537453,0.00014769,2]
[338697739,1726883438058,-151.66537453,0.00014769,2]
[338697740,1726883438067,-151.66537453,0.00014769,2]
[338697741,1726883438076,-151.66537453,0.00014769,2]
[338697742,1726883438086,-151.66537453,0.00014769,2]
[338697743,1726883438097,-151.66537453,0.00014769,2]
[338697744,1726883438108,-151.66537453,0.00014769,2]
[338697745,1726883438118,-151.66537453,0.00014769,2]
[338697746,1726883438128,-151.66537453,0.00014769,2]
[338697747,1726883438138,-151.66537453,0.00014769,2]
[338697748,1726883438147,-151.66537453,0.00014769,2]
[338697750,1726883438156,-151.66537453,0.00014769,2]
[338697752,1726883438165,-151.66537453,0.00014769,2]
[338697754,1726883438176,-152.16,0.00014769,2]
[338697756,1726883438187,-846.6868064,0.00014769,2]
[338697758,1726883438196,-846.6868064,0.00014769,2]
[338697760,1726883438210,-846.6868064,0.00014769,2]
[338697762,1726883438219,-846.6868064,0.00014769,2]
[338697764,1726883438228,-846.6868064,0.00014769,2]
[338697766,1726883438238,-846.6868064,0.00014769,2]
[338697768,1726883438248,-846.6868064,0.00014769,2]
[338697770,1726883438258,-846.6868064,0.00014769,2]
[338697772,1726883438267,-846.6868064,0.00014769,2]
[338697774,1726883438278,-846.6868064,0.00014769,2]
[338697777,1726883438287,-846.6868064,0.00014769,2]
[338697778,1726883438297,-846.6868064,0.00014769,2]
[338697780,1726883438306,-846.6868064,0.00014769,2]
[338697782,1726883438316,-846.6868064,0.00014769,2]
[338697784,1726883438326,-846.6868064,0.00014769,2]
[338697786,1726883438336,-846.6868064,0.00014769,2]
[338697788,1726883438347,-846.6868064,0.00014769,2]
[338697791,1726883438356,-846.6868064,0.00014769,2]
[338697793,1726883438366,-846.6868064,0.00014769,2]
[338697795,1726883438375,-847.18,0.00014769,2]
[338697797,1726883438385,-1075.65993666,0.00014769,2]
[338697799,1726883438394,-1075.65993666,0.00014769,2]
[338697801,1726883438404,-1075.65993666,0.00014769,2]
[338697803,1726883438413,-1075.65993666,0.00014769,2]
[338697805,1726883438422,-1075.65993666,0.00014769,2]
[338697806,1726883438432,-1075.65993666,0.00014769,2]
[338697808,1726883438441,-1075.65993666,0.00014769,2]
[338697809,1726883438451,-1075.65993666,0.00014769,2]
[338697810,1726883438460,-1075.65993666,0.00014769,2]
[338697811,1726883438470,-1075.65993666,0.00014769,2]
[338697812,1726883438479,-1075.65993666,0.00014769,2]
[338697813,1726883438488,-1075.65993666,0.00014769,2]
[338697814,1726883438498,-1075.65993666,0.00014769,2]
[338697815,1726883438507,-1075.65993666,0.00014769,2]
[338697816,1726883438517,-1075.65993666,0.00014769,2]
[338697817,1726883438526,-1075.65993666,0.00014769,2]
[338697818,1726883438536,-1075.65993666,0.00014769,2]
[338697819,1726883438545,-1075.65993666,0.00014769,2]
[338697820,1726883438554,-1075.65993666,0.00014769,2]
[338697821,1726883438563,-1076.15,0.00014769,2]
[338697822,1726883438573,-9348.65595474,0.0001477,2]
[338697823,1726883438582,-32895.73897357,0.0001477,2]
[338697824,1726883438595,-9180.73948933,0.0001477,2]
[338697825,1726883438604,-46743.2797737,0.0001477,2]
[338697826,1726883438614,-500.0,0.00014773,2]
[338697827,1726883438623,-500.0,0.00014773,2]
[338697828,1726883438633,-500.0,0.00014773,2]
[338697829,1726883438642,-151.0,0.00014773,2]
[338697830,1726883438652,-151.0,0.00014773,2]
[338697831,1726883438661,-225.800642,0.00014773,2]
[338697832,1726883438670,-225.800642,0.00014773,2]
[338697833,1726883438679,-317.605056,0.00014773,2]
[338697834,1726883438688,-317.605056,0.00014773,2]
[338697835,1726883438698,-520.865607,0.00014773,2]
[338697836,1726883438707,-520.865607,0.00014773,2]
[338697837,1726883438716,-151.0,0.00014773,2]
[338697838,1726883438725,-151.0,0.00014773,2]
[338697839,1726883438734,-279.92357,0.00014773,2]
[338697840,1726883438743,-294.624263,0.00014773,2]
[338697841,1726883438753,-279.92357,0.00014773,2]
[338697842,1726883438762,-151.0,0.00014773,2]
[338697843,1726883438771,-294.624263,0.00014773,2]
[338697844,1726883438780,-10000.0,0.00014773,2]
[338697845,1726883438789,-10000.0,0.00014773,2]
[338697846,1726883438798,-745.357041,0.00014773,2]
[338697847,1726883438807,-10000.0,0.00014773,2]
[338697848,1726883438816,-745.357041,0.00014773,2]
[338697849,1726883438826,-1045.779014,0.00014773,2]
[338697850,1726883438835,-10000.0,0.00014773,2]
[338697851,1726883438844,-1045.779014,0.00014773,2]
[338697852,1726883438853,-10000.0,0.00014773,2]
[338697853,1726883438863,-504.262223,0.00014773,2]
[338697854,1726883438872,-151.0,0.00014773,2]
[338697855,1726883438882,-504.262223,0.00014773,2]
[338697856,1726883438891,-245.521652,0.00014773,2]
[338697857,1726883438900,-245.521652,0.00014773,2]
[338697858,1726883438909,-151.0,0.00014773,2]
[338697859,1726883438919,-151.0,0.00014773,2]
[338697860,1726883438929,-151.0,0.00014773,2]
[338697861,1726883438938,-151.174538,0.00014773,2]
[338697862,1726883438947,-151.0,0.00014773,2]
[338697863,1726883438957,-151.0,0.00014773,2]
[338697864,1726883438966,-481.145634,0.00014773,2]
[338697865,1726883438975,-481.145634,0.00014773,2]
[338697866,1726883438984,-151.0,0.00014773,2]
[338697867,1726883438994,-151.0,0.00014773,2]
[338697868,1726883439003,-155.517669,0.00014773,2]
[338697869,1726883439013,-367.95764,0.00014773,2]
[338697870,1726883439021,-367.95764,0.00014773,2]
[338697871,1726883439031,-491.388823,0.00014773,2]
[338697872,1726883439041,-151.0,0.00014773,2]
[338697873,1726883439050,-491.388823,0.00014773,2]
[338697874,1726883439059,-151.0,0.00014773,2]
[338697875,1726883439068,-151.0,0.00014773,2]
[338697876,1726883439076,-287.900813,0.00014773,2]
[338697877,1726883439086,-151.0,0.00014773,2]
[338697878,1726883439095,-287.900813,0.00014773,2]
[338697879,1726883439105,-35514.57006878,0.00014774,2]
[338697880,1726883439243,-27600.14762562,0.00014774,2]
[338697881,1726883439254,-4441.12146196,0.00014774,2]
[338697886,1726883439678,-1027.18596745,0.00014774,2]
[338697888,1726883439804,-257.884,0.00014774,2]
[338697889,1726883439818,-2830.02928545,0.00014774,2]
[338697890,1726883439831,-331.37356652,0.00014774,2]
[338697891,1726883439842,-1250.38353555,0.00014774,2]
[338697892,1726883439959,-6380.81109413,0.00014774,2]
[338697895,1726883440089,-5067.44166413,0.00014774,2]
[338697923,1726883442869,-1383.95848256,0.00014774,2]
[338697924,1726883442881,-443.4506406,0.00014774,2]
[338697925,1726883442892,-445.03084536,0.00014774,2]
[338697926,1726883442990,-378.703701,0.00014774,2]
[338697927,1726883443001,-4143.31,0.00014774,2]
[338697928,1726883443012,-2722.72632865,0.00014774,2]
[338697929,1726883443024,-656.86101804,0.00014774,2]
[338697930,1726883443035,-293.80853246,0.00014774,2]
[338697931,1726883443049,-1728.53770147,0.00014774,2]
[338697954,1726883445860,-15198.06703155,0.00014774,2]
[338697955,1726883445872,-7111.25087152,0.00014774,2]
[338697956,1726883445881,-190.03630561,0.00014774,2]
[338697957,1726883445890,-21038.2392315,0.00014774,2]
[338697958,1726883445900,-7170.5364931,0.00014774,2]
[338697959,1726883446009,-11526.7754164,0.00014774,2]
[338697960,1726883446022,-504.14612,0.00014774,2]
[338697961,1726883446033,-755.425946,0.00014774,2]
[338697962,1726883446043,-504.14612,0.00014774,2]
[338697963,1726883446054,-598.275104,0.00014774,2]
[338697964,1726883446063,-598.275104,0.00014774,2]
[338697965,1726883446072,-763.566971,0.00014774,2]
[338697966,1726883446082,-763.566971,0.00014774,2]
[338697967,1726883446092,-294.956787,0.00014774,2]
[338697968,1726883446102,-151.0,0.00014774,2]
[338697969,1726883446113,-294.956787,0.00014774,2]
[338697970,1726883446124,-151.0,0.00014774,2]
[338697971,1726883446135,-258.454906,0.00014774,2]
[338697972,1726883446144,-1380.478197,0.00014774,2]
[338697973,1726883446154,-258.454906,0.00014774,2]
[338697974,1726883446165,-1380.478197,0.00014774,2]
[338697975,1726883446175,-248.557621,0.00014774,2]
[338697976,1726883446184,-499.80194,0.00014774,2]
[338697977,1726883446194,-499.80194,0.00014774,2]
[338697978,1726883446203,-151.0,0.00014774,2]
[338697979,1726883446216,-151.0,0.00014774,2]
[338697980,1726883446225,-883.077153,0.00014774,2]
[338697981,1726883446235,-151.0,0.00014774,2]
[338697982,1726883446244,-883.077153,0.00014774,2]
[338697983,1726883446254,-151.0,0.00014774,2]
[338697984,1726883446263,-223.838451,0.00014774,2]
[338697985,1726883446272,-223.838451,0.00014774,2]
[338697986,1726883446284,-1628.191274,0.00014774,2]
[338697987,1726883446293,-1628.191274,0.00014774,2]
[338697988,1726883446303,-151.0,0.00014774,2]
[338697989,1726883446313,-151.0,0.00014774,2]
[338697990,1726883446322,-225.800642,0.00014774,2]
[338697991,1726883446332,-225.800642,0.00014774,2]
[338697992,1726883446341,-317.605056,0.00014774,2]
[338697993,1726883446351,-317.605056,0.00014774,2]
[338697994,1726883446360,-520.865607,0.00014774,2]
[338697995,1726883446370,-520.865607,0.00014774,2]
[338697996,1726883446379,-151.0,0.00014774,2]
[338697997,1726883446389,-151.0,0.00014774,2]
[338697998,1726883446398,-279.92357,0.00014774,2]
[338697999,1726883446407,-279.92357,0.00014774,2]
[338698000,1726883446417,-294.624263,0.00014774,2]
[338698001,1726883446426,-279.287094,0.00014774,2]
[338698002,1726883446436,-294.624263,0.00014774,2]
[338698003,1726883446445,-10000.0,0.00014774,2]
[338698004,1726883446454,-10000.0,0.00014774,2]
[338698005,1726883446464,-745.357041,0.00014774,2]
[338698006,1726883446473,-10000.0,0.00014774,2]
[338698007,1726883446482,-745.357041,0.00014774,2]
[338698008,1726883446491,-1045.779014,0.00014774,2]
[338698009,1726883446500,-10000.0,0.00014774,2]
[338698010,1726883446510,-1045.779014,0.00014774,2]
[338698011,1726883446519,-10000.0,0.00014774,2]
[338698012,1726883446528,-504.262223,0.00014774,2]
[338698013,1726883446538,-151.0,0.00014774,2]
[338698014,1726883446547,-504.262223,0.00014774,2]
[338698015,1726883446556,-245.521652,0.00014774,2]
[338698016,1726883446566,-245.521652,0.00014774,2]
[338698017,1726883446575,-151.0,0.00014774,2]
[338698018,1726883446584,-151.0,0.00014774,2]
[338698019,1726883446593,-151.0,0.00014774,2]
[338698020,1726883446603,-151.0,0.00014774,2]
[338698021,1726883446612,-151.0,0.00014774,2]
[338698022,1726883446621,-481.145634,0.00014774,2]
[338698023,1726883446631,-481.145634,0.00014774,2]
[338698024,1726883446641,-151.0,0.00014774,2]
[338698025,1726883446650,-151.0,0.00014774,2]
[338698026,1726883446659,-367.95764,0.00014774,2]
[338698027,1726883446669,-367.95764,0.00014774,2]
[338698028,1726883446678,-491.388823,0.00014774,2]
[338698029,1726883446687,-151.0,0.00014774,2]
[338698030,1726883446696,-491.388823,0.00014774,2]
[338698031,1726883446705,-151.0,0.00014774,2]
[338698032,1726883446714,-151.0,0.00014774,2]
[338698033,1726883446724,-287.900813,0.00014774,2]
[338698034,1726883446733,-151.0,0.00014774,2]
[338698035,1726883446742,-287.900813,0.00014774,2]
[338698036,1726883446751,-42076.4784629,0.00014774,2]
[338698037,1726883446760,-56091.9357284,0.00014774,2]
[338698038,1726883446769,-500.0,0.00014778,2]
[338698039,1726883446778,-500.0,0.00014778,2]
[338698040,1726883446787,-500.0,0.00014778,2]
[338698041,1726883446797,-500.0,0.00014778,2]
[338698042,1726883446806,-151.0,0.0001478,2]
[338698043,1726883446815,-151.0,0.0001478,2]
[338698044,1726883446824,-480.075544,0.0001478,2]
[338698045,1726883446833,-480.075544,0.0001478,2]
[338698046,1726883446842,-151.0,0.0001478,2]
[338698047,1726883446851,-151.0,0.0001478,2]
[338698048,1726883446860,-183.615297,0.0001478,2]
[338698049,1726883446869,-183.615297,0.0001478,2]
[338698050,1726883446878,-492.233856,0.0001478,2]
[338698051,1726883446888,-492.233856,0.0001478,2]
[338698052,1726883446897,-151.131637,0.0001478,2]
[338698053,1726883446906,-225.513855,0.0001478,2]
[338698054,1726883446915,-225.513855,0.0001478,2]
[338698055,1726883446924,-151.0,0.0001478,2]
[338698056,1726883446933,-504.14612,0.0001478,2]
[338698057,1726883446942,-755.425946,0.0001478,2]
[338698058,1726883446952,-504.14612,0.0001478,2]
[338698059,1726883446961,-598.275104,0.0001478,2]
[338698060,1726883446971,-598.275104,0.0001478,2]
[338698061,1726883446980,-763.566971,0.0001478,2]
[338698062,1726883446989,-763.566971,0.0001478,2]
[338698063,1726883447000,-294.956787,0.0001478,2]
[338698064,1726883447009,-294.956787,0.0001478,2]
[338698065,1726883447019,-1380.478197,0.0001478,2]
[338698066,1726883447030,-1380.478197,0.0001478,2]
[338698067,1726883447040,-499.80194,0.0001478,2]
[338698068,1726883447050,-499.80194,0.0001478,2]
[338698069,1726883447062,-151.0,0.0001478,2]
[338698070,1726883447073,-883.077153,0.0001478,2]
[338698071,1726883447082,-171.446179,0.0001478,2]
[338698072,1726883447091,-883.077153,0.0001478,2]
[338698073,1726883447101,-151.0,0.0001478,2]
[338698074,1726883447110,-151.0,0.0001478,2]
[338698075,1726883447119,-394.7772,0.0001478,2]
[338698076,1726883447129,-394.7772,0.0001478,2]
[338698077,1726883447138,-223.838451,0.0001478,2]
[338698078,1726883447147,-223.838451,0.0001478,2]
[338698079,1726883447158,-1628.191274,0.0001478,2]
[338698080,1726883447168,-1628.191274,0.0001478,2]
[338698081,1726883447178,-151.0,0.0001478,2]
[338698082,1726883447187,-151.0,0.0001478,2]
[338698083,1726883447197,-150.0,0.0001478,2]
[338698084,1726883447207,-93486.5595474,0.0001478,2]
[338698085,1726883447218,-121532.527412,0.00014784,2]
[338698086,1726883447228,-166.113244,0.00014784,2]
[338698087,1726883447238,-166.113244,0.00014784,2]
[338698088,1726883447247,-151.0,0.00014784,2]
[338698089,1726883447258,-151.0,0.00014784,2]
[338698090,1726883447268,-151.0,0.00014784,2]
[338698091,1726883447280,-151.0,0.00014784,2]
[338698092,1726883447290,-151.0,0.00014784,2]
[338698093,1726883447299,-151.0,0.00014784,2]
[338698094,1726883447308,-151.0,0.00014784,2]
[338698095,1726883447318,-151.0,0.00014784,2]
[338698096,1726883447328,-151.0,0.00014784,2]
[338698097,1726883447339,-151.0,0.00014784,2]
[338698098,1726883447349,-151.0,0.00014784,2]
[338698099,1726883447358,-151.0,0.00014784,2]
[338698100,1726883447368,-1198.531765,0.00014784,2]
[338698101,1726883447377,-1198.531765,0.00014784,2]
[338698102,1726883447386,-1198.531765,0.00014784,2]
[338698103,1726883447396,-168.874332,0.00014784,2]
[338698104,1726883447405,-1198.531765,0.00014784,2]
[338698105,1726883447414,-168.874332,0.00014784,2]
[338698106,1726883447424,-168.874332,0.00014784,2]
[338698107,1726883447433,-168.874332,0.00014784,2]
[338698108,1726883447443,-151.0,0.00014784,2]
[338698109,1726883447452,-151.0,0.00014784,2]
[338698110,1726883447461,-151.0,0.00014784,2]
[338698111,1726883447470,-151.0,0.00014784,2]
[338698112,1726883447480,-306.701348,0.00014784,2]
[338698113,1726883447489,-306.701348,0.00014784,2]
[338698114,1726883447499,-306.701348,0.00014784,2]
[338698115,1726883447508,-306.701348,0.00014784,2]
[338698116,1726883447518,-152.016662,0.00014784,2]
[338698117,1726883447527,-152.016662,0.00014784,2]
[338698118,1726883447537,-152.016662,0.00014784,2]
[338698119,1726883447547,-152.016662,0.00014784,2]
[338698120,1726883447557,-237.161421,0.00014784,2]
[338698121,1726883447567,-237.161421,0.00014784,2]
[338698122,1726883447578,-237.161421,0.00014784,2]
[338698123,1726883447587,-237.161421,0.00014784,2]
[338698124,1726883447596,-151.0,0.00014784,2]
[338698125,1726883447606,-151.0,0.00014784,2]
[338698126,1726883447615,-151.0,0.00014784,2]
[338698127,1726883447624,-151.0,0.00014784,2]
[338698128,1726883447634,-156.406827,0.00014784,2]
[338698129,1726883447643,-156.406827,0.00014784,2]
[338698130,1726883447653,-156.406827,0.00014784,2]
[338698131,1726883447662,-156.406827,0.00014784,2]
[338698132,1726883447672,-151.0,0.00014784,2]
[338698133,1726883447681,-151.0,0.00014784,2]
[338698134,1726883447690,-393.315953,0.00014784,2]
[338698135,1726883447699,-393.315953,0.00014784,2]
[338698136,1726883447708,-393.315953,0.00014784,2]
[338698137,1726883447718,-393.315953,0.00014784,2]
[338698138,1726883447727,-151.0,0.00014784,2]
[338698139,1726883447739,-151.0,0.00014784,2]
[338698140,1726883447749,-183.615297,0.00014784,2]
[338698141,1726883447760,-183.615297,0.00014784,2]
[338698142,1726883447771,-183.615297,0.00014784,2]
[338698143,1726883447780,-183.615297,0.00014784,2]
[338698144,1726883447791,-263.557666,0.00014784,2]
[338698145,1726883447802,-263.557666,0.00014784,2]
[338698146,1726883447812,-263.557666,0.00014784,2]
[338698147,1726883447823,-263.557666,0.00014784,2]
[338698148,1726883447838,-492.233856,0.00014784,2]
[338698149,1726883447852,-492.233856,0.00014784,2]
[338698150,1726883447863,-492.233856,0.00014784,2]
[338698151,1726883447874,-492.233856,0.00014784,2]
[338698152,1726883447884,-151.0,0.00014784,2]
[338698153,1726883447894,-225.513855,0.00014784,2]
[338698154,1726883447903,-225.513855,0.00014784,2]
[338698155,1726883447913,-225.513855,0.00014784,2]
[338698156,1726883447922,-225.513855,0.00014784,2]
[338698157,1726883447931,-151.0,0.00014784,2]
[338698158,1726883447941,-151.0,0.00014784,2]
[338698159,1726883447950,-249.740922,0.00014784,2]
[338698160,1726883447960,-249.740922,0.00014784,2]
[338698161,1726883447970,-249.740922,0.00014784,2]
[338698162,1726883447979,-249.740922,0.00014784,2]
[338698163,1726883447989,-504.14612,0.00014784,2]
[338698164,1726883447999,-755.425946,0.00014784,2]
[338698165,1726883448008,-504.14612,0.00014784,2]
[338698166,1726883448018,-598.275104,0.00014784,2]
[338698167,1726883448028,-598.275104,0.00014784,2]
[338698168,1726883448037,-763.566971,0.00014784,2]
[338698169,1726883448046,-763.566971,0.00014784,2]
[338698170,1726883448056,-294.956787,0.00014784,2]
[338698171,1726883448066,-151.0,0.00014784,2]
[338698172,1726883448075,-294.956787,0.00014784,2]
[338698173,1726883448085,-151.0,0.00014784,2]
[338698174,1726883448094,-258.454906,0.00014784,2]
[338698175,1726883448104,-1380.478197,0.00014784,2]
[338698176,1726883448113,-258.454906,0.00014784,2]
[338698177,1726883448123,-1380.478197,0.00014784,2]
[338698178,1726883448132,-499.80194,0.00014784,2]
[338698179,1726883448142,-499.80194,0.00014784,2]
[338698180,1726883448152,-151.438047,0.00014784,2]
[338698181,1726883448161,-158.758777,0.00014784,2]
[338698182,1726883448171,-883.077153,0.00014784,2]
[338698183,1726883448180,-883.077153,0.00014784,2]
[338698184,1726883448189,-151.0,0.00014784,2]
[338698185,1726883448199,-151.0,0.00014784,2]
[338698186,1726883448211,-394.7772,0.00014784,2]
[338698187,1726883448220,-394.7772,0.00014784,2]
[338698188,1726883448229,-223.838451,0.00014784,2]
[338698189,1726883448239,-223.838451,0.00014784,2]
[338698190,1726883448248,-1628.191274,0.00014784,2]
[338698191,1726883448258,-1628.191274,0.00014784,2]
[338698192,1726883448268,-151.0,0.00014784,2]
[338698193,1726883448277,-151.0,0.00014784,2]
[338698194,1726883448289,-225.800642,0.00014784,2]
[338698195,1726883448298,-225.800642,0.00014784,2]
[338698196,1726883448308,-317.605056,0.00014784,2]